bitfinex/quotes_SOLUSD_20250420
["timestamp","ask_amount","ask_price","bid_price","bid_amount"]
[1745148495536,1.0,136.82,136.81,17.12]
[1745148495741,1.0,136.83,136.81,17.12]
[1745148496725,1.0,136.82,136.81,17.12]
[1745148499730,19.64964886,136.82,136.81,17.58]
[1745148501440,19.64964886,136.82,136.8,0.03]
[1745148501441,128.04964886,136.81,136.8,0.03]
[1745148501742,45.64964886,136.81,136.8,17.61]
[1745148504641,83.34,136.77,136.76,0.03]
[1745148504813,1.0,136.77,136.76,0.03]
[1745148505217,45.64964886,136.74,136.73,0.03]
[1745148505451,45.64964886,136.74,136.69,17.58]
[1745148505650,1.0,136.7,136.69,17.58]
[1745148508935,1.0,136.72,136.69,17.58]
[1745148509136,1.0,136.74,136.69,17.58]
[1745148509440,1.0,136.72,136.69,17.58]
[1745148509752,1.0,136.74,136.69,17.58]
[1745148511455,1.0,136.75,136.69,17.58]
[1745148513525,1.0,136.74,136.69,17.58]
[1745148515259,1.0,136.76,136.7,6.0551]
[1745148516125,1.0,136.76,136.7,32.0551]
[1745148517150,1.0,136.76,136.71,1.5703]
[1745148517352,83.4,136.77,136.71,1.5703]
[1745148519155,82.4,136.77,136.71,1.5703]
[1745148519452,1.0,136.78,136.72,36.24964886]
[1745148519629,1.0,136.79,136.73,250.46]
[1745148520133,1.0,136.78,136.73,250.46]
[1745148520859,1.0,136.77,136.73,250.46]
[1745148521152,83.4,136.77,136.73,250.46]
[1745148521870,1.0,136.69,136.63,0.03]
[1745148522162,1.0,136.68,136.67,250.46]
[1745148527039,82.4,136.73,136.67,250.46]
[1745148527040,1.0,136.69,136.67,250.46]
[1745148527352,1.0,136.68,136.67,250.46]
[1745148527767,1.0,136.69,136.67,250.46]
[1745148528466,1.0,136.68,136.67,250.46]
[1745148528866,1.0,136.69,136.67,250.46]
[1745148530546,1.0,136.7,136.67,250.46]
[1745148532863,82.4,136.69,136.67,250.46]
[1745148537483,83.4,136.68,136.67,250.46]
[1745148537981,82.4,136.68,136.67,250.46]
[1745148538155,83.4,136.68,136.67,250.46]
[1745148538561,1.0,136.68,136.67,250.46]
[1745148543167,1.0,136.64,136.63,0.03]
[1745148545984,1.0,136.65,136.63,0.03]
[1745148546177,1.0,136.64,136.63,0.03]
[1745148546368,1.0,136.65,136.63,0.03]
[1745148546688,1.0,136.64,136.63,0.03]
[1745148546989,1.0,136.65,136.63,0.03]
[1745148547579,1.0,136.64,136.63,0.03]
[1745148548069,1.0,136.65,136.63,0.03]
[1745148548269,1.0,136.64,136.63,0.03]
[1745148548483,1.0,136.65,136.63,0.03]
[1745148548690,1.0,136.64,136.63,0.03]
[1745148548887,1.0,136.65,136.63,0.03]
[1745148549278,1.0,136.64,136.63,0.03]
[1745148549479,1.0,136.65,136.63,0.03]
[1745148550692,1.0,136.64,136.63,0.03]
[1745148553590,7.4811,136.64,136.63,0.03]
[1745148558295,7.4811,136.64,136.63,267.86]
[1745148559689,1.0,136.64,136.63,267.86]
[1745148565909,1.0,136.65,136.63,267.86]
[1745148566209,1.0,136.66,136.63,267.86]
[1745148567202,1.0,136.69,136.63,273.884]
[1745148567401,1.063,136.7,136.63,273.884]
[1745148567612,1.0,136.69,136.63,273.884]
[1745148568004,1.0,136.68,136.63,273.884]
[1745148568201,1.0,136.67,136.63,267.86]
[1745148568393,0.063,136.7,136.63,267.86]
[1745148568394,1.0,136.66,136.63,267.86]
[1745148569298,82.4,136.65,136.63,267.86]
[1745148570213,82.4,136.64,136.63,267.86]
[1745148570421,83.4,136.64,136.63,267.86]
[1745148571013,1.0,136.65,136.63,267.86]
[1745148571209,1.0,136.64,136.63,267.86]
[1745148573714,0.063,136.7,136.64,18.64964886]
[1745148573887,0.063,136.7,136.66,18.64964886]
[1745148574215,0.063,136.7,136.67,28.83175218]
[1745148574419,0.063,136.7,136.68,17.16]
[1745148574601,0.063,136.7,136.68,27.88662931]
[1745148578926,0.063,136.7,136.69,18.64964886]
[1745148581434,0.063,136.7,136.69,20.25044886]
[1745148581734,0.063,136.7,136.69,55.67130104]
[1745148582106,0.063,136.76,136.69,55.67130104]
[1745148582425,1.063,136.76,136.7,28.83175218]
[1745148582605,0.063,136.76,136.7,28.83175218]
[1745148583124,0.063,136.76,136.71,18.64964886]
[1745148583330,0.063,136.76,136.71,29.37627817]
[1745148583531,0.063,136.76,136.71,47.48140104]
[1745148584332,0.063,136.76,136.74,26.0]
[1745148584536,0.063,136.76,136.75,17.14]
[1745148584834,1.0,136.73,136.69,1.6008]
[1745148585006,1.0,136.73,136.7,17.14]
[1745148585205,1.0,136.73,136.71,250.52]
[1745148585402,1.0,136.74,136.71,250.52]
[1745148585730,1.0,136.73,136.71,250.52]
[1745148586104,83.4,136.72,136.71,250.52]
[1745148586727,82.4,136.72,136.71,250.52]
[1745148587305,1.0,136.73,136.71,250.52]
[1745148587511,1.0,136.74,136.71,250.52]
[1745148588230,83.4,136.75,136.71,250.52]
[1745148588932,1.0,136.74,136.71,250.52]
[1745148589312,83.4,136.75,136.71,250.52]
[1745148590122,82.4,136.75,136.71,250.52]
[1745148591125,82.4,136.75,136.72,26.0]
[1745148591331,0.063,136.76,136.72,26.0]
[1745148593232,1.063,136.76,136.71,26.0]
[1745148593433,1.063,136.76,136.73,267.64]
[1745148593829,0.063,136.76,136.73,267.64]
[1745148594424,1.063,136.76,136.73,267.64]
[1745148594634,0.063,136.76,136.73,267.64]
[1745148595344,1.063,136.76,136.73,267.64]
[1745148595842,0.063,136.76,136.73,267.64]
[1745148596245,1.063,136.76,136.73,267.64]
[1745148597455,0.063,136.76,136.73,267.64]
[1745148597835,1.063,136.76,136.73,267.64]
[1745148598036,0.063,136.76,136.73,267.64]
[1745148598234,1.063,136.76,136.73,267.64]
[1745148598436,0.063,136.76,136.73,267.64]
[1745148600371,0.063,136.76,136.73,272.03301539]
[1745148601262,1.063,136.76,136.73,267.64]
[1745148601434,1.0,136.75,136.73,267.64]
[1745148601763,1.0,136.74,136.73,267.64]
[1745148603846,1.0,136.75,136.73,267.64]
[1745148604042,1.0,136.74,136.73,267.64]
[1745148607247,9.1068,136.74,136.73,267.64]
[1745148608248,1.0,136.74,136.73,267.64]
[1745148611574,1.0,136.68,136.66,250.5]
[1745148611762,83.4,136.67,136.66,250.5]
[1745148611966,83.4,136.67,136.66,267.64]
[1745148612998,9.1068,136.67,136.66,267.64]
[1745148613355,1.0,136.67,136.66,267.64]
[1745148619382,1.0,136.68,136.66,267.64]
[1745148620474,1.0,136.67,136.66,267.64]
[1745148622283,1.0,136.68,136.66,267.64]
[1745148622492,1.0,136.67,136.66,267.64]
[1745148624684,1.0,136.68,136.66,267.64]
[1745148624896,1.0,136.69,136.66,267.64]
[1745148625301,34.0,136.67,136.66,267.64]
[1745148637888,134.67314886,136.65,136.64,0.03]
[1745148638105,52.27314886,136.65,136.64,0.03]
[1745148639981,45.64964886,136.63,136.62,17.14]
[1745148642428,46.64964886,136.63,136.62,17.14]
[1745148642599,26.27314886,136.61,136.6,0.03]
[1745148642924,27.27314886,136.61,136.6,17.17]
[1745148643101,26.27314886,136.61,136.6,17.17]
[1745148643496,27.27314886,136.61,136.6,17.17]
[1745148643804,26.27314886,136.61,136.6,17.17]
[1745148644127,27.27314886,136.61,136.6,17.17]
[1745148644427,102.01964886,136.56,136.55,250.66]
[1745148644602,102.01964886,136.56,136.55,267.8]
[1745148645129,83.37,136.56,136.55,267.8]
[1745148645602,102.01964886,136.56,136.55,267.8]
[1745148646215,128.01964886,136.56,136.55,250.66]
[1745148646423,135.87914886,136.56,136.55,267.8]
[1745148650325,135.87914886,136.56,136.44,26.0]
[1745148650507,83.34,136.52,136.44,26.0]
[1745148650827,1.0,136.52,136.51,270.4341003]
[1745148651210,21.93,136.45,136.35,1.0]
[1745148651425,1.0,136.3,136.24,17.84]
[1745148651625,11.17456539,136.29,136.25,17.84]
[1745148651920,26.0,136.32,136.25,17.84]
[1745148652222,26.0,136.3,136.21,0.5]
[1745148652420,26.0,136.3,136.22,17.84]
[1745148653424,26.0,136.31,136.2,45.27994374]
[1745148653616,26.0,136.31,136.21,17.84]
[1745148654120,18.64964886,136.31,136.21,17.84]
[1745148654313,18.64964886,136.31,136.22,17.86]
[1745148654998,18.64964886,136.31,136.2,45.27994374]
[1745148655198,18.64964886,136.31,136.21,268.86]
[1745148656209,26.0,136.32,136.22,18.64964886]
[1745148656527,26.0,136.32,136.21,268.86]
[1745148657132,26.0,136.32,136.22,18.64964886]
[1745148658226,0.49978502,136.31,136.22,18.64964886]
[1745148661334,26.49978502,136.31,136.22,18.64964886]
[1745148662025,108.4,136.3,136.23,17.86]
[1745148662219,82.4,136.3,136.23,17.86]
[1745148663333,0.49978502,136.31,136.24,18.64964886]
[1745148663528,0.49978502,136.31,136.23,17.86]
[1745148664244,0.49978502,136.31,136.24,18.64964886]
[1745148664818,33.0,136.3,136.24,18.64964886]
[1745148665619,13.14243145,136.3,136.29,44.64964886]
[1745148665829,3.30203145,136.3,136.29,36.50964886]
[1745148666129,0.49978502,136.31,136.29,36.50964886]
[1745148666435,0.49978502,136.31,136.29,18.64964886]
[1745148666743,0.49978502,136.31,136.27,6.1443]
[1745148667247,0.49978502,136.31,136.23,18.64964886]
[1745148668347,0.49978502,136.31,136.23,16.14964886]
[1745148669632,0.49978502,136.31,136.23,42.14964886]
[1745148671654,82.4,136.3,136.16,6.2621]
[1745148672248,82.4,136.29,136.16,32.2621]
[1745148672452,82.4,136.29,136.17,18.64964886]
[1745148673133,82.4,136.28,136.16,32.2621]
[1745148674240,2.13938502,136.27,136.16,36.94365502]
[1745148675239,2.13938502,136.27,136.17,269.18]
[1745148678225,2.13938502,136.27,136.17,280.12365502]
[1745148678749,2.13938502,136.27,136.18,18.64964886]
[1745148680752,2.13938502,136.27,136.17,280.12365502]
[1745148681427,2.13938502,136.27,136.17,269.18]
[1745148683038,26.0,136.25,136.17,251.3]
[1745148683231,32.4243,136.25,136.18,18.18]
[1745148683949,26.0,136.21,136.18,18.18]
[1745148684125,82.4,136.2,136.18,18.18]
[1745148684327,82.4,136.19,136.18,18.18]
[1745148684554,26.0,136.21,136.18,18.18]
[1745148684856,20.21324886,136.2,136.19,18.18]
[1745148685054,27.5636,136.2,136.19,18.18]
[1745148685269,1.5636,136.2,136.19,18.18]
[1745148686848,1.5636,136.24,136.19,18.18]
[1745148687054,27.5636,136.24,136.19,18.18]
[1745148687237,1.5636,136.24,136.19,18.18]
[1745148687557,27.5636,136.24,136.19,18.18]
[1745148688367,44.64964886,136.19,136.17,251.3]
[1745148688534,44.64964886,136.19,136.18,18.18]
[1745148688737,45.64964886,136.19,136.18,18.18]
[1745148689040,1.0,136.22,136.18,18.18]
[1745148689246,1.5636,136.24,136.18,18.18]
[1745148689962,27.5636,136.24,136.18,18.18]
[1745148690168,1.5636,136.24,136.18,18.18]
[1745148690476,0.49978502,136.23,136.18,18.18]
[1745148691340,1.6661,136.32,136.2,26.0]
[1745148691739,1.6661,136.32,136.22,26.0]
[1745148691940,1.6661,136.32,136.19,18.64964886]
[1745148692134,26.0,136.3,136.19,18.64964886]
[1745148692360,1.6661,136.32,136.18,18.18]
[1745148692842,26.0,136.28,136.18,18.18]
[1745148694076,26.0,136.29,136.18,18.18]
[1745148694236,84.0661,136.32,136.18,18.18]
[1745148694445,26.0,136.31,136.18,18.18]
[1745148695142,26.0,136.31,136.19,251.44]
[1745148695958,26.0,136.31,136.2,269.62]
[1745148696860,82.4,136.3,136.2,269.62]
[1745148697059,82.4,136.29,136.21,18.64964886]
[1745148697247,82.4,136.29,136.2,251.44]
[1745148697248,82.4,136.28,136.2,251.44]
[1745148697568,26.0,136.24,136.22,18.18]
[1745148697766,83.9963,136.23,136.22,18.18]
[1745148697944,1.5963,136.23,136.22,18.18]
[1745148699166,1.0,136.3,136.22,18.18]
[1745148699167,7.8268,136.28,136.22,18.18]
[1745148700541,1.5153,136.32,136.22,18.18]
[1745148700950,1.5153,136.32,136.23,18.64964886]
[1745148703867,0.063,136.33,136.23,18.64964886]
[1745148704173,0.063,136.33,136.23,19.64964886]
[1745148704469,0.063,136.33,136.25,18.64964886]
[1745148704882,0.063,136.33,136.24,6.165]
[1745148705060,0.063,136.33,136.26,18.18]
[1745148705385,0.063,136.33,136.27,251.36]
[1745148709774,0.063,136.33,136.19,1.0]
[1745148709980,0.063,136.33,136.28,251.32]
[1745148710184,0.063,136.33,136.29,18.18]
[1745148711461,0.063,136.33,136.3,18.18]
[1745148718375,0.063,136.33,136.32,44.64964886]
[1745148719891,0.063,136.33,136.32,18.64964886]
[1745148720686,0.063,136.33,136.32,29.98637172]
[1745148721386,82.4,136.4,136.33,4.3488]
[1745148721700,82.4,136.39,136.33,4.3488]
[1745148721879,82.4,136.39,136.3,18.64964886]
[1745148722080,0.063,136.41,136.3,18.64964886]
[1745148722081,82.4,136.38,136.3,18.64964886]
[1745148722270,82.4,136.38,136.29,4.3488]
[1745148722475,82.4,136.37,136.29,4.3488]
[1745148722794,82.4,136.37,136.29,30.3488]
[1745148723188,82.4,136.37,136.29,4.3488]
[1745148723490,82.4,136.36,136.29,4.3488]
[1745148723869,82.4,136.36,136.29,30.3488]
[1745148724572,82.4,136.35,136.29,26.0]
[1745148724769,82.4,136.34,136.26,10.33672286]
[1745148724966,82.4,136.33,136.27,18.64964886]
[1745148725172,82.4,136.33,136.28,269.56]
[1745148731275,82.4,136.38,136.28,269.56]
[1745148731495,82.4,136.37,136.28,269.56]
[1745148733182,82.4,136.37,136.28,279.89672286]
[1745148733494,82.4,136.37,136.29,18.64964886]
[1745148735511,82.4,136.36,136.29,18.64964886]
[1745148738603,1.5674,136.39,136.29,18.64964886]
[1745148738604,82.4,136.38,136.29,18.64964886]
[1745148738794,82.4,136.38,136.31,19.64964886]
[1745148738996,82.4,136.38,136.32,10.33672286]
[1745148739900,82.4,136.38,136.32,16.41792286]
[1745148740593,82.4,136.38,136.32,6.0812]
[1745148740794,82.4,136.37,136.33,18.32]
[1745148742505,82.4,136.37,136.34,10.33672286]
[1745148743109,82.4,136.4,136.34,10.33672286]
[1745148743810,0.063,136.41,136.35,18.64964886]
[1745148743997,0.063,136.41,136.35,28.98637172]
[1745148745104,0.063,136.41,136.36,251.16]
[1745148746601,82.4,136.4,136.36,251.16]
[1745148746790,82.4,136.4,136.37,17.68]
[1745148746993,82.4,136.39,136.37,17.68]
[1745148749911,0.063,136.41,136.37,17.68]
[1745148754617,0.063,136.46,136.4,44.64964886]
[1745148754809,0.063,136.46,136.41,17.68]
[1745148755307,0.063,136.46,136.42,251.1]
[1745148757318,0.063,136.46,136.42,261.43672286]
[1745148757504,0.063,136.46,136.43,28.98637172]
[1745148758049,0.063,136.46,136.44,6.0472]
[1745148758809,0.063,136.46,136.43,28.98637172]
[1745148759705,0.063,136.46,136.43,29.98637172]
[1745148759913,0.063,136.46,136.45,26.0]
[1745148760714,0.063,136.46,136.45,36.33672286]
[1745148763019,0.063,136.46,136.41,6.0472]
[1745148763206,0.063,136.46,136.44,26.0]
[1745148764036,0.063,136.46,136.42,10.33672286]
[1745148765132,0.063,136.46,136.43,268.66]
[1745148765934,0.063,136.46,136.44,17.68]
[1745148766109,0.063,136.46,136.44,28.01672286]
[1745148766631,0.063,136.46,136.45,18.64964886]
[1745148767135,0.063,136.46,136.45,44.64964886]
[1745148770021,0.063,136.46,136.45,54.98637172]
[1745148771642,82.463,136.5,136.45,54.98637172]
[1745148772346,0.063,136.5,136.47,18.64964886]
[1745148774945,0.063,136.5,136.47,44.64964886]
[1745148775145,0.063,136.5,136.48,268.12]
[1745148779156,0.063,136.5,136.48,278.45672286]
[1745148779345,0.063,136.5,136.49,28.98637172]
[1745148781921,0.063,136.5,136.49,54.98637172]
[1745148782118,0.063,136.5,136.49,28.98637172]
[1745148782723,0.063,136.5,136.49,54.98637172]
[1745148782958,0.063,136.5,136.49,28.98637172]
[1745148785349,0.063,136.5,136.49,297.06637172]
[1745148787543,0.063,136.54,136.52,44.64964886]
[1745148787740,0.063,136.54,136.52,54.98637172]
[1745148788065,0.063,136.54,136.53,28.98637172]
[1745148788744,0.063,136.54,136.53,10.33672286]
[1745148788950,0.063,136.54,136.52,26.0]
[1745148789133,1.6592,136.53,136.49,10.33672286]
[1745148789649,1.6592,136.53,136.49,36.33672286]
[1745148789860,1.6592,136.53,136.49,10.33672286]
[1745148790034,1.6592,136.53,136.49,36.33672286]
[1745148790353,6.2028,136.54,136.5,28.98637172]
[1745148790354,82.463,136.54,136.5,28.98637172]
[1745148791337,82.463,136.54,136.5,10.33672286]
[1745148793460,82.463,136.54,136.5,28.98637172]
[1745148795149,82.463,136.54,136.51,268.02]
[1745148795349,82.463,136.54,136.51,278.35672286]
[1745148796846,1.605,136.52,136.51,250.84]
[1745148797163,1.605,136.52,136.51,268.02]
[1745148799167,82.4,136.51,136.44,8.34494248]
[1745148799460,1.5848,136.47,136.45,17.18]
[1745148799670,82.4,136.46,136.43,250.86]
[1745148799960,82.4,136.46,136.44,17.18]
[1745148801855,82.4,136.45,136.43,250.86]
[1745148802058,82.4,136.45,136.44,17.18]
[1745148810350,82.4,136.47,136.44,17.18]
[1745148810662,1.5464,136.5,136.44,17.18]
[1745148810663,82.4,136.48,136.45,18.64964886]
[1745148812166,90.4493,136.53,136.45,18.64964886]
[1745148814260,82.4,136.52,136.48,26.0]
[1745148814475,82.4,136.51,136.49,17.18]
[1745148822269,82.4,136.51,136.5,250.92]
[1745148829382,83.9464,136.53,136.5,250.92]
[1745148832890,1.5464,136.53,136.5,250.92]
[1745148837311,0.063,136.54,136.5,250.92]
[1745148838606,0.063,136.54,136.51,17.16]
[1745148840626,0.063,136.54,136.52,17.16]
[1745148840917,0.063,136.54,136.5,250.92]
[1745148840918,0.063,136.54,136.53,17.16]
[1745148845413,0.063,136.54,136.53,268.04]
[1745148855400,0.063,136.54,136.53,286.68964886]
[1745148857029,0.063,136.54,136.53,35.80964886]
[1745148857201,0.063,136.54,136.53,61.80964886]
[1745148857822,1.6989,136.6,136.56,26.0]
[1745148858019,0.063,136.6,136.56,26.0]
[1745148858211,0.063,136.6,136.57,18.64964886]
[1745148859028,0.063,136.6,136.57,3.63922104]
[1745148859203,0.063,136.6,136.56,18.64964886]
[1745148859611,0.063,136.6,136.56,22.32649308]
[1745148861207,82.463,136.64,136.56,30.6918391]
[1745148861405,82.463,136.64,136.57,9.36534602]
[1745148861608,82.463,136.64,136.57,17.7102885]
[1745148863016,82.463,136.64,136.59,18.64964886]
[1745148863332,81.5516,136.67,136.59,18.64964886]
[1745148864317,81.5516,136.67,136.62,26.0]
[1745148865196,81.5516,136.67,136.63,267.9]
[1745148866231,83.218,136.67,136.63,267.9]
[1745148867522,81.5516,136.66,136.63,267.9]
[1745148869234,1.6664,136.67,136.63,267.9]
[1745148871819,1.6664,136.67,136.64,17.14]
[1745148871820,81.5516,136.66,136.64,17.14]
[1745148873451,1.6664,136.67,136.64,17.14]
[1745148875147,1.6664,136.67,136.65,250.68]
[1745148875524,87.9638,136.68,136.65,250.68]
[1745148876141,0.063,136.68,136.67,26.0]
[1745148877926,0.063,136.68,136.65,250.68]
[1745148878953,1.6664,136.67,136.66,17.12]
[1745148900165,0.063,136.68,136.66,17.12]
[1745148900867,0.063,136.68,136.67,250.64]
[1745148903751,0.063,136.68,136.67,269.28964886]
[1745148904459,0.063,136.7,136.69,44.64964886]
[1745148906062,0.063,136.7,136.67,250.64]
[1745148906251,82.4,136.69,136.67,250.64]
[1745148910847,82.4,136.69,136.68,17.1]
[1745148911372,0.063,136.7,136.68,17.1]
[1745148913757,0.063,136.7,136.67,250.64]
[1745148913957,0.063,136.7,136.68,17.1]
[1745148915990,0.063,136.7,136.67,250.64]
[1745148916289,0.063,136.7,136.68,17.1]
[1745148920285,82.4,136.69,136.68,17.1]
[1745148926097,0.063,136.7,136.68,17.1]
[1745148928770,82.4,136.69,136.68,17.1]
[1745148929382,26.063,136.7,136.68,17.1]
[1745148933696,26.063,136.7,136.69,250.64]
[1745148934794,82.4,136.69,136.68,17.1]
[1745148935003,82.4,136.69,136.68,267.74]
[1745148943006,0.063,136.7,136.68,267.74]
[1745148945502,82.4,136.69,136.68,267.74]
[1745148949598,0.063,136.7,136.68,267.74]
[1745148958413,82.4,136.69,136.68,267.74]
[1745148959718,0.063,136.7,136.68,267.74]
[1745148962718,0.063,136.7,136.69,18.64964886]
[1745148963725,0.063,136.7,136.68,293.74]
[1745148964221,0.063,136.7,136.69,18.64964886]
[1745148966411,0.063,136.7,136.68,293.74]
[1745148967526,0.063,136.7,136.69,18.64964886]
[1745148970340,0.063,136.73,136.72,44.64964886]
[1745148974018,0.063,136.76,136.73,18.64964886]
[1745148975230,0.063,136.76,136.75,18.64964886]
[1745148982143,0.063,136.76,136.75,24.01691944]
[1745148983346,0.063,136.76,136.75,18.64964886]
[1745148983927,82.463,136.79,136.75,18.64964886]
[1745148984244,82.463,136.81,136.75,32.02756447]
[1745148985333,82.463,136.81,136.76,17.04]
[1745148986029,82.4,136.79,136.76,17.04]
[1745148989847,82.4,136.79,136.77,250.42]
[1745148990643,0.063,136.81,136.78,18.64964886]
[1745148995635,0.063,136.81,136.78,26.63192201]
[1745148996946,0.063,136.81,136.8,44.64964886]
[1745149000147,82.4,136.83,136.81,18.64964886]
[1745149002236,0.03,136.84,136.81,18.64964886]
[1745149002446,0.03,136.84,136.81,44.64964886]
[1745149005169,0.03,136.84,136.81,311.94964886]
[1745149008169,82.43,136.84,136.81,311.94964886]
[1745149008768,82.43,136.84,136.81,294.94964886]
[1745149008950,82.43,136.84,136.81,327.85609782]
[1745149010247,82.43,136.84,136.81,60.55609782]
[1745149011168,82.43,136.84,136.81,53.04510534]
[1745149011754,82.43,136.84,136.82,18.64964886]
[1745149012263,82.43,136.84,136.82,26.0]
[1745149012567,82.43,136.84,136.83,26.0]
[1745149013862,82.4,136.83,136.81,8.39545648]
[1745149014062,82.4,136.82,136.75,0.063]
[1745149014270,82.4,136.81,136.75,0.063]
[1745149014465,82.4,136.81,136.77,26.0]
[1745149014667,82.4,136.81,136.75,18.71264886]
[1745149014987,82.4,136.81,136.78,26.0]
[1745149015185,82.4,136.8,136.79,267.28]
[1745149025892,82.4,136.8,136.79,250.28]
[1745149026098,1.6411,136.8,136.79,250.28]
[1745149026278,8.2686,136.8,136.79,267.24]
[1745149026597,8.2686,136.8,136.79,267.3]
[1745149027477,8.2686,136.8,136.75,0.063]
[1745149030587,82.4,136.79,136.75,0.063]
[1745149031287,82.4,136.78,136.75,0.063]
[1745149034688,82.4,136.77,136.75,0.063]
[1745149034888,82.4,136.76,136.75,0.063]
[1745149035187,82.4,136.76,136.75,267.463]
[1745149037998,82.337,136.73,136.72,0.063]
[1745149038203,82.337,136.73,136.72,17.023]
[1745149038887,83.9143,136.73,136.72,17.023]
[1745149039083,33.8032,136.73,136.72,17.023]
[1745149039388,33.8032,136.73,136.69,0.063]
[1745149039581,82.4,136.72,136.69,0.063]
[1745149045102,82.4,136.72,136.7,250.5]
[1745149045295,82.4,136.72,136.7,267.48]
[1745149047510,82.4,136.75,136.7,267.48]
[1745149049987,82.4,136.75,136.71,26.0]
[1745149052314,82.4,136.74,136.71,26.0]
[1745149052722,82.4,136.74,136.7,267.48]
[1745149058119,83.9467,136.73,136.7,267.48]
[1745149063936,82.4,136.72,136.7,267.48]
[1745149065946,82.337,136.69,136.68,0.063]
[1745149066129,1.5467,136.73,136.69,250.54]
[1745149066130,44.64964886,136.72,136.69,250.54]
[1745149071727,44.64964886,136.72,136.65,0.063]
[1745149071728,90.0719,136.68,136.65,0.063]
[1745149072023,82.337,136.67,136.65,0.063]
[1745149075224,82.337,136.67,136.66,267.56]
[1745149076928,26.0,136.72,136.66,267.56]
[1745149077239,1.5746,136.7,136.66,267.56]
[1745149080870,7.7106,136.7,136.66,267.56]
[1745149081449,82.4,136.69,136.66,267.56]
[1745149081647,82.4,136.68,136.66,267.56]
[1745149082150,82.337,136.65,136.64,0.063]
[1745149082323,18.64964886,136.69,136.66,250.62]
[1745149084249,7.7106,136.7,136.66,250.62]
[1745149086140,18.64964886,136.69,136.66,250.62]
[1745149087150,7.7106,136.7,136.66,250.62]
[1745149087351,82.4,136.69,136.66,250.62]
[1745149089164,18.64964886,136.68,136.66,250.62]
[1745149089965,108.4,136.69,136.66,250.62]
[1745149093179,82.4,136.65,136.64,16.963]
[1745149093381,26.0,136.69,136.66,250.68]
[1745149099100,82.4,136.65,136.64,16.963]
[1745149099301,26.0,136.69,136.67,250.7]
[1745149104203,18.64964886,136.68,136.67,250.7]
[1745149105005,82.4,136.65,136.64,16.963]
[1745149105174,18.64964886,136.68,136.65,250.7]
[1745149105375,82.4,136.67,136.65,250.7]
[1745149110805,82.337,136.64,136.62,0.063]
[1745149110999,82.337,136.63,136.62,0.063]